[Event "Late-Titled-Tuesday-Blitz-May-14-2024"]
[Site "Chess.com"]
[Date "2024.05.14"]
[Round "11"]
[White "Iuckyducky"]
[Black "HanSchut"]
[Result "0-1"]
[WhiteElo "2285"]
[BlackElo "2358"]
[TimeControl "180+1"]
[EndTime "16:04:04 PDT"]
[Termination "HanSchut won by checkmate"]

1. e4 {[%clk 0:03:00.9]} 1... c5 {[%clk 0:02:59.3]} 2. Nf3 {[%clk 0:03:00.7]}
2... d6 {[%clk 0:02:59.3]} 3. d4 {[%clk 0:02:59.9]} 3... cxd4 {[%clk 0:03:00.2]}
4. Nxd4 {[%clk 0:02:59.9]} 4... Nf6 {[%clk 0:03:00.8]} 5. Nc3 {[%clk 0:03:00.6]}
5... a6 {[%clk 0:03:00.6]} 6. Bg5 {[%clk 0:02:57.9]} 6... e6 {[%clk 0:03:00.4]}
7. f4 {[%clk 0:02:56.2]} 7... Be7 {[%clk 0:03:00.9]} 8. Qf3 {[%clk 0:02:56.2]}
8... h6 {[%clk 0:03:00.5]} 9. Bh4 {[%clk 0:02:55.2]} 9... g5 {[%clk 0:03:00.6]}
10. fxg5 {[%clk 0:02:54.7]} 10... Nfd7 {[%clk 0:03:01.2]} 11. Nxe6 {[%clk
0:02:50.1]} 11... fxe6 {[%clk 0:03:01.3]} 12. Qh5+ {[%clk 0:02:50.7]} 12... Kf8
{[%clk 0:03:01.8]} 13. Bc4 {[%clk 0:02:47.2]} 13... Ne5 {[%clk 0:02:59.4]} 14.
O-O+ {[%clk 0:02:39.5]} 14... Kg7 {[%clk 0:02:45.8]} 15. Bg3 {[%clk 0:02:10.2]}
15... Nbc6 {[%clk 0:02:44.8]} 16. gxh6+ {[%clk 0:00:53.4]} 16... Rxh6 {[%clk
0:02:42]} 17. Qe2 {[%clk 0:00:54.3]} 17... Qb6+ {[%clk 0:02:27.3]} 18. Kh1
{[%clk 0:00:45.1]} 18... Qxb2 {[%clk 0:02:26.9]} 19. Bf4 {[%clk 0:00:09.7]}
19... Rh7 {[%clk 0:01:58.5]} 20. Na4 {[%clk 0:00:09.5]} 20... Qb4 {[%clk
0:01:54.8]} 21. Bb3 {[%clk 0:00:09.9]} 21... Bd7 {[%clk 0:01:43.3]} 22. c3
{[%clk 0:00:10]} 22... Qb5 {[%clk 0:01:36.5]} 23. Qd2 {[%clk 0:00:05.9]} 23...
Rah8 {[%clk 0:01:25.3]} 24. Bg5 {[%clk 0:00:06.2]} 24... Rxh2+ {[%clk
0:01:23.3]} 25. Kg1 {[%clk 0:00:06.6]} 25... Rh1+ {[%clk 0:01:16.6]} 26. Kf2
{[%clk 0:00:05.9]} 26... Rf8+ {[%clk 0:01:14.9]} 27. Kg3 {[%clk 0:00:05.1]}
27... Rhxf1 {[%clk 0:01:10.1]} 28. Rxf1 {[%clk 0:00:03.5]} 28... Qxf1 {[%clk
0:01:09.1]} 29. Bxe7 {[%clk 0:00:03.9]} 29... Nxe7 {[%clk 0:01:05.6]} 30. Qg5+
{[%clk 0:00:04.4]} 30... N7g6 {[%clk 0:01:05.4]} 31. Kh2 {[%clk 0:00:01.3]}
31... Qf4+ {[%clk 0:01:02.5]} 32. Qxf4 {[%clk 0:00:01.5]} 32... Rxf4 {[%clk
0:01:03.3]} 33. Nb6 {[%clk 0:00:02.2]} 33... Rxe4 {[%clk 0:00:53.7]} 34. Nxd7
{[%clk 0:00:02.6]} 34... Nxd7 {[%clk 0:00:54.3]} 35. Kg3 {[%clk 0:00:02.8]}
35... Nc5 {[%clk 0:00:53.6]} 36. Kf3 {[%clk 0:00:03.7]} 36... Nxb3 {[%clk
0:00:53.6]} 37. Kxe4 {[%clk 0:00:04]} 37... Nc5+ {[%clk 0:00:52.8]} 38. Kd4
{[%clk 0:00:04.3]} 38... Ne5 {[%clk 0:00:51.9]} 39. g3 {[%clk 0:00:03.8]} 39...
Kf6 {[%clk 0:00:52]} 40. a3 {[%clk 0:00:03.8]} 40... b5 {[%clk 0:00:50.8]} 41.
c4 {[%clk 0:00:03.7]} 41... Nxc4 {[%clk 0:00:50]} 42. a4 {[%clk 0:00:04.1]}
42... bxa4 {[%clk 0:00:48.4]} 43. Kxc4 {[%clk 0:00:05]} 43... Kg5 {[%clk
0:00:45.7]} 44. Kb4 {[%clk 0:00:05]} 44... Kg4 {[%clk 0:00:45.2]} 45. Ka5 {[%clk
0:00:05.5]} 45... Kxg3 {[%clk 0:00:45.6]} 46. Kb4 {[%clk 0:00:06]} 46... a5+
{[%clk 0:00:43.5]} 47. Ka3 {[%clk 0:00:06.9]} 47... e5 {[%clk 0:00:42.9]} 48.
Ka2 {[%clk 0:00:07.2]} 48... e4 {[%clk 0:00:43.4]} 49. Ka3 {[%clk 0:00:08]}
49... e3 {[%clk 0:00:43.9]} 50. Kb2 {[%clk 0:00:08.7]} 50... e2 {[%clk
0:00:44.2]} 51. Kc3 {[%clk 0:00:09.6]} 51... e1=Q+ {[%clk 0:00:44.1]} 52. Kc4
{[%clk 0:00:10.4]} 52... Qb4+ {[%clk 0:00:43.8]} 53. Kd5 {[%clk 0:00:10.1]}
53... Nd3 {[%clk 0:00:41.7]} 54. Kc6 {[%clk 0:00:08.3]} 54... d5 {[%clk
0:00:40.8]} 55. Kc7 {[%clk 0:00:07.2]} 55... d4 {[%clk 0:00:40.8]} 56. Kc6
{[%clk 0:00:07.9]} 56... Nf4 {[%clk 0:00:41.2]} 57. Kc7 {[%clk 0:00:08.8]} 57...
d3 {[%clk 0:00:41.6]} 58. Kc8 {[%clk 0:00:09.2]} 58... d2 {[%clk 0:00:42.1]} 59.
Kc7 {[%clk 0:00:10.1]} 59... d1=Q {[%clk 0:00:42]} 60. Kc8 {[%clk 0:00:11]}
60... Qc3+ {[%clk 0:00:41.4]} 61. Kb8 {[%clk 0:00:11.2]} 61... Qd8+ {[%clk
0:00:40.5]} 62. Kb7 {[%clk 0:00:12.1]} 62... Qcc7+ {[%clk 0:00:39.9]} 63. Ka6
{[%clk 0:00:12.8]} 63... Qb6# {[%clk 0:00:40.3]} 0-1

[Event "Late-Titled-Tuesday-Blitz-May-14-2024"]
[Site "Chess.com"]
[Date "2024.05.14"]
[Round "11"]
[White "Pitomina"]
[Black "ozates"]
[Result "0-1"]
[WhiteElo "2541"]
[BlackElo "2660"]
[TimeControl "180+1"]
[EndTime "16:04:08 PDT"]
[Termination "ozates won by resignation"]

1. d4 {[%clk 0:03:00.9]} 1... Nf6 {[%clk 0:02:59.9]} 2. c4 {[%clk 0:03:00.6]}
2... g6 {[%clk 0:03:00.5]} 3. Nc3 {[%clk 0:03:00.5]} 3... Bg7 {[%clk 0:03:01.1]}
4. Nf3 {[%clk 0:03:00.7]} 4... O-O {[%clk 0:03:01.2]} 5. e4 {[%clk 0:03:00.2]}
5... d6 {[%clk 0:03:01.4]} 6. Be2 {[%clk 0:03:00.8]} 6... Na6 {[%clk 0:02:57.3]}
7. O-O {[%clk 0:02:57.2]} 7... e5 {[%clk 0:02:57.4]} 8. Re1 {[%clk 0:02:30.2]}
8... exd4 {[%clk 0:02:55.5]} 9. Nxd4 {[%clk 0:02:29.9]} 9... Nc5 {[%clk
0:02:54.5]} 10. Bf1 {[%clk 0:02:29.5]} 10... Re8 {[%clk 0:02:54.2]} 11. f3
{[%clk 0:02:28.5]} 11... c6 {[%clk 0:02:52.6]} 12. Bg5 {[%clk 0:02:22.8]} 12...
Qb6 {[%clk 0:02:51.1]} 13. Be3 {[%clk 0:01:41.1]} 13... Qxb2 {[%clk 0:02:43.2]}
14. Rc1 {[%clk 0:01:38.2]} 14... Qb6 {[%clk 0:02:40.3]} 15. Nb3 {[%clk
0:01:36.1]} 15... Nfd7 {[%clk 0:02:38.1]} 16. Qxd6 {[%clk 0:01:28.5]} 16... Be5
{[%clk 0:02:26.7]} 17. Qd1 {[%clk 0:01:20.4]} 17... Qb4 {[%clk 0:01:43]} 18. Qc2
{[%clk 0:01:02.1]} 18... Nxb3 {[%clk 0:01:38.5]} 19. axb3 {[%clk 0:01:03]} 19...
Qd6 {[%clk 0:01:27.6]} 20. g3 {[%clk 0:00:55]} 20... Qf6 {[%clk 0:01:20.9]} 21.
Bg2 {[%clk 0:00:52.1]} 21... Bd4 {[%clk 0:00:57.4]} 22. Qf2 {[%clk 0:00:50.8]}
22... Bxc3 {[%clk 0:00:56.8]} 23. Red1 {[%clk 0:00:47.8]} 23... a5 {[%clk
0:00:50.9]} 24. f4 {[%clk 0:00:44.6]} 24... Bb4 {[%clk 0:00:48.2]} 25. e5 {[%clk
0:00:44.4]} 25... Qe7 {[%clk 0:00:46.7]} 26. c5 {[%clk 0:00:38.8]} 26... a4
{[%clk 0:00:44.8]} 27. bxa4 {[%clk 0:00:35.4]} 27... Ra5 {[%clk 0:00:44.2]} 28.
Kh1 {[%clk 0:00:29.1]} 28... Nxc5 {[%clk 0:00:35.2]} 29. Rc4 {[%clk 0:00:27.9]}
29... Na6 {[%clk 0:00:34.2]} 30. Rcd4 {[%clk 0:00:05.6]} 30... Bc5 {[%clk
0:00:27.4]} 31. Rc4 {[%clk 0:00:04.6]} 31... Bxe3 {[%clk 0:00:25.3]} 32. Qxe3
{[%clk 0:00:05.5]} 32... Be6 {[%clk 0:00:25.7]} 33. Rcd4 {[%clk 0:00:05.9]}
33... Nc7 {[%clk 0:00:21]} 34. h3 {[%clk 0:00:05.6]} 34... Nd5 {[%clk
0:00:20.6]} 35. Qd2 {[%clk 0:00:06.2]} 35... Rea8 {[%clk 0:00:19.8]} 36. g4
{[%clk 0:00:06.3]} 36... Rxa4 {[%clk 0:00:18.9]} 37. Kh2 {[%clk 0:00:03.9]}
37... Rxd4 {[%clk 0:00:17.1]} 38. Qxd4 {[%clk 0:00:04.8]} 38... Ra2 {[%clk
0:00:16.9]} 39. Rd2 {[%clk 0:00:04]} 39... Rxd2 {[%clk 0:00:16.1]} 40. Qxd2
{[%clk 0:00:04.9]} 40... Qb4 {[%clk 0:00:16.2]} 41. Qxb4 {[%clk 0:00:03.6]}
41... Nxb4 {[%clk 0:00:17.1]} 42. Kg3 {[%clk 0:00:03.6]} 42... Bd5 {[%clk
0:00:17]} 43. Bf1 {[%clk 0:00:03.5]} 43... c5 {[%clk 0:00:17.4]} 44. f5 {[%clk
0:00:03.8]} 44... c4 {[%clk 0:00:17.6]} 45. Kf4 {[%clk 0:00:04]} 45... c3 {[%clk
0:00:17.9]} 46. Bd3 {[%clk 0:00:02.6]} 0-1

[Event "Late-Titled-Tuesday-Blitz-May-14-2024"]
[Site "Chess.com"]
[Date "2024.05.14"]
[Round "11"]
[White "subham777"]
[Black "KebabJangles"]
[Result "1-0"]
[WhiteElo "2525"]
[BlackElo "2370"]
[TimeControl "180+1"]
[EndTime "16:04:08 PDT"]
[Termination "subham777 won by checkmate"]

1. e4 {[%clk 0:03:00.9]} 1... c5 {[%clk 0:02:53.8]} 2. Nf3 {[%clk 0:02:58.4]}
2... e6 {[%clk 0:02:53.3]} 3. g3 {[%clk 0:02:56.2]} 3... d5 {[%clk 0:02:52.5]}
4. exd5 {[%clk 0:02:55.7]} 4... exd5 {[%clk 0:02:53.4]} 5. d4 {[%clk 0:02:54.8]}
5... Nf6 {[%clk 0:02:50.7]} 6. Bg2 {[%clk 0:02:53]} 6... Be7 {[%clk 0:02:49.6]}
7. O-O {[%clk 0:02:43.9]} 7... O-O {[%clk 0:02:37.1]} 8. c3 {[%clk 0:02:41.5]}
8... Nc6 {[%clk 0:02:31.3]} 9. Re1 {[%clk 0:02:35.1]} 9... Bg4 {[%clk
0:02:28.4]} 10. dxc5 {[%clk 0:02:25.2]} 10... Bxc5 {[%clk 0:02:27.9]} 11. Be3
{[%clk 0:02:25.5]} 11... Bxe3 {[%clk 0:02:26.7]} 12. Rxe3 {[%clk 0:02:26.4]}
12... Bxf3 {[%clk 0:02:25.8]} 13. Bxf3 {[%clk 0:02:25.8]} 13... d4 {[%clk
0:02:25.9]} 14. Rd3 {[%clk 0:02:10.8]} 14... Qb6 {[%clk 0:02:23.5]} 15. cxd4
{[%clk 0:01:48.1]} 15... Qxb2 {[%clk 0:02:13.5]} 16. Nc3 {[%clk 0:01:42.8]}
16... Qb6 {[%clk 0:01:55.1]} 17. Rb1 {[%clk 0:01:39]} 17... Qa6 {[%clk
0:01:52.5]} 18. Be2 {[%clk 0:01:30.3]} 18... Rad8 {[%clk 0:01:31.4]} 19. d5
{[%clk 0:01:21.3]} 19... Ne5 {[%clk 0:01:17.6]} 20. Re3 {[%clk 0:01:14.3]} 20...
Qd6 {[%clk 0:01:13.9]} 21. Qd4 {[%clk 0:01:07.6]} 21... Ned7 {[%clk 0:01:06.9]}
22. Qxa7 {[%clk 0:00:57.5]} 22... Nc5 {[%clk 0:00:54.1]} 23. Bf3 {[%clk
0:00:44.2]} 23... Rfe8 {[%clk 0:00:49]} 24. Nb5 {[%clk 0:00:38.4]} 24... Qd7
{[%clk 0:00:46.6]} 25. Rxe8+ {[%clk 0:00:22]} 25... Rxe8 {[%clk 0:00:42.8]} 26.
Qxc5 {[%clk 0:00:22.4]} 26... h5 {[%clk 0:00:40.1]} 27. Qd6 {[%clk 0:00:19.8]}
27... Qf5 {[%clk 0:00:39.8]} 28. Rb3 {[%clk 0:00:14.8]} 28... Re1+ {[%clk
0:00:39.4]} 29. Kg2 {[%clk 0:00:14.4]} 29... h4 {[%clk 0:00:39.7]} 30. h3 {[%clk
0:00:11.4]} 30... hxg3 {[%clk 0:00:37.4]} 31. Qxg3 {[%clk 0:00:11.6]} 31... Nxd5
{[%clk 0:00:34.4]} 32. Nd4 {[%clk 0:00:03.8]} 32... Nf4+ {[%clk 0:00:34]} 33.
Kh2 {[%clk 0:00:04.4]} 33... Qe5 {[%clk 0:00:31.4]} 34. Ne2 {[%clk 0:00:04.2]}
34... Rxe2 {[%clk 0:00:15.7]} 35. Bxe2 {[%clk 0:00:02]} 35... Qxe2 {[%clk
0:00:15.4]} 36. Qxf4 {[%clk 0:00:01.9]} 36... Qf1 {[%clk 0:00:15.8]} 37. Rg3
{[%clk 0:00:02.1]} 37... Qd3 {[%clk 0:00:14.8]} 38. Qf3 {[%clk 0:00:03]} 38...
Qd4 {[%clk 0:00:14.8]} 39. Qg2 {[%clk 0:00:03.5]} 39... Qf6 {[%clk 0:00:14.8]}
40. Qf3 {[%clk 0:00:04.3]} 40... Qe5 {[%clk 0:00:14.9]} 41. Qg4 {[%clk
0:00:04.8]} 41... f5 {[%clk 0:00:15.3]} 42. Qg5 {[%clk 0:00:04.9]} 42... Qd4
{[%clk 0:00:14.1]} 43. f4 {[%clk 0:00:05.4]} 43... Qf2+ {[%clk 0:00:14.1]} 44.
Rg2 {[%clk 0:00:06]} 44... Qc5 {[%clk 0:00:13.5]} 45. Qxg7# {[%clk 0:00:06.2]}
1-0

[Event "Late-Titled-Tuesday-Blitz-May-14-2024"]
[Site "Chess.com"]
[Date "2024.05.14"]
[Round "11"]
[White "chessdjw"]
[Black "Leebit02"]
[Result "1-0"]
[WhiteElo "2771"]
[BlackElo "2605"]
[TimeControl "180+1"]
[EndTime "16:04:11 PDT"]
[Termination "chessdjw won on time"]

1. d4 {[%clk 0:03:00.9]} 1... d5 {[%clk 0:02:59]} 2. c4 {[%clk 0:03:01.2]} 2...
dxc4 {[%clk 0:02:59]} 3. Nf3 {[%clk 0:03:01.8]} 3... Nf6 {[%clk 0:02:58.7]} 4.
e3 {[%clk 0:03:02.5]} 4... e6 {[%clk 0:02:58.1]} 5. Bxc4 {[%clk 0:03:03.1]} 5...
c5 {[%clk 0:02:57.9]} 6. O-O {[%clk 0:03:03.5]} 6... a6 {[%clk 0:02:58.6]} 7.
Be2 {[%clk 0:03:03.4]} 7... Nbd7 {[%clk 0:02:55.6]} 8. Nbd2 {[%clk 0:02:58.7]}
8... b6 {[%clk 0:02:55.7]} 9. Nc4 {[%clk 0:02:58.3]} 9... Bb7 {[%clk 0:02:53.2]}
10. dxc5 {[%clk 0:02:56.8]} 10... Bxc5 {[%clk 0:02:37.2]} 11. Nd6+ {[%clk
0:02:56.7]} 11... Bxd6 {[%clk 0:02:37.5]} 12. Qxd6 {[%clk 0:02:57.5]} 12... Rc8
{[%clk 0:02:28.7]} 13. Rd1 {[%clk 0:02:51.2]} 13... Qe7 {[%clk 0:02:25.1]} 14.
Qxe7+ {[%clk 0:02:40.3]} 14... Kxe7 {[%clk 0:02:25.6]} 15. b3 {[%clk 0:02:40.3]}
15... Rhd8 {[%clk 0:02:17.2]} 16. Ba3+ {[%clk 0:02:35.4]} 16... Ke8 {[%clk
0:02:17.4]} 17. Nd4 {[%clk 0:02:23.2]} 17... Ne4 {[%clk 0:02:13]} 18. Bf1 {[%clk
0:01:25]} 18... Ndc5 {[%clk 0:01:49.7]} 19. f3 {[%clk 0:01:25]} 19... Nc3 {[%clk
0:01:27.6]} 20. Rdc1 {[%clk 0:01:24.4]} 20... Nd5 {[%clk 0:01:27.4]} 21. Kf2
{[%clk 0:01:18.3]} 21... g6 {[%clk 0:01:10.5]} 22. Bxc5 {[%clk 0:00:48.1]} 22...
bxc5 {[%clk 0:01:08]} 23. Ne2 {[%clk 0:00:46.5]} 23... Nb4 {[%clk 0:01:03.7]}
24. Rd1 {[%clk 0:00:45.4]} 24... Nd3+ {[%clk 0:00:53]} 25. Kg3 {[%clk
0:00:42.7]} 25... Nb4 {[%clk 0:00:50.3]} 26. Nc3 {[%clk 0:00:32.6]} 26... Nc2
{[%clk 0:00:46.2]} 27. Rac1 {[%clk 0:00:25.6]} 27... Nxe3 {[%clk 0:00:45.3]} 28.
Rxd8+ {[%clk 0:00:24.4]} 28... Rxd8 {[%clk 0:00:45.3]} 29. Be2 {[%clk
0:00:16.1]} 29... Rd2 {[%clk 0:00:44]} 30. Kf2 {[%clk 0:00:16.2]} 30... Nf5
{[%clk 0:00:40.5]} 31. Ke1 {[%clk 0:00:15.6]} 31... Rd8 {[%clk 0:00:29.9]} 32.
Na4 {[%clk 0:00:15.2]} 32... c4 {[%clk 0:00:18.4]} 33. Rxc4 {[%clk 0:00:15.2]}
33... Ne3 {[%clk 0:00:17.5]} 34. Rc7 {[%clk 0:00:15.6]} 34... Bd5 {[%clk
0:00:10.3]} 35. Bxa6 {[%clk 0:00:14.1]} 35... Nxg2+ {[%clk 0:00:09.1]} 36. Kf2
{[%clk 0:00:14.6]} 36... Nf4 {[%clk 0:00:09.1]} 37. Bb5+ {[%clk 0:00:14.8]}
37... Kf8 {[%clk 0:00:08.7]} 38. Nb6 {[%clk 0:00:15.3]} 38... Nh3+ {[%clk
0:00:07]} 39. Kg3 {[%clk 0:00:15]} 39... Ng1 {[%clk 0:00:07.3]} 40. a4 {[%clk
0:00:12.9]} 40... h5 {[%clk 0:00:03.4]} 41. h4 {[%clk 0:00:12]} 41... Bb7 {[%clk
0:00:00.3]} 42. Rxb7 {[%clk 0:00:11.8]} 1-0

[Event "Late-Titled-Tuesday-Blitz-May-14-2024"]
[Site "Chess.com"]
[Date "2024.05.14"]
[Round "11"]
[White "dianamirza"]
[Black "HipsterChess22"]
[Result "1-0"]
[WhiteElo "1977"]
[BlackElo "2176"]
[TimeControl "180+1"]
[EndTime "16:04:14 PDT"]
[Termination "dianamirza won by checkmate"]

1. d4 {[%clk 0:02:24.4]} 1... d5 {[%clk 0:02:57.7]} 2. Nf3 {[%clk 0:02:17.1]}
2... e6 {[%clk 0:02:57.4]} 3. e3 {[%clk 0:02:17]} 3... c6 {[%clk 0:02:53.4]} 4.
Bd3 {[%clk 0:02:16.8]} 4... f5 {[%clk 0:02:52.6]} 5. b3 {[%clk 0:02:17.1]} 5...
Bd6 {[%clk 0:02:51.9]} 6. Bb2 {[%clk 0:02:17.6]} 6... Qe7 {[%clk 0:02:51.8]} 7.
Nbd2 {[%clk 0:02:18]} 7... a5 {[%clk 0:02:51.1]} 8. Ne5 {[%clk 0:02:18.4]} 8...
Nf6 {[%clk 0:02:46.3]} 9. f4 {[%clk 0:02:14.2]} 9... a4 {[%clk 0:02:45.9]} 10.
bxa4 {[%clk 0:02:11.8]} 10... Rxa4 {[%clk 0:02:45.1]} 11. c4 {[%clk 0:02:12.2]}
11... O-O {[%clk 0:02:38.4]} 12. Qxa4 {[%clk 0:02:11.4]} 12... Bd7 {[%clk
0:02:25.7]} 13. Nxd7 {[%clk 0:02:08.4]} 13... Nbxd7 {[%clk 0:02:25]} 14. Nf3
{[%clk 0:02:08.5]} 14... Ne4 {[%clk 0:02:22.5]} 15. O-O {[%clk 0:02:05]} 15...
Ndf6 {[%clk 0:02:17.8]} 16. Ne5 {[%clk 0:02:03.9]} 16... g5 {[%clk 0:02:13.9]}
17. Bxe4 {[%clk 0:01:54.6]} 17... Nxe4 {[%clk 0:02:11.6]} 18. cxd5 {[%clk
0:01:54.3]} 18... exd5 {[%clk 0:02:08.7]} 19. Qd1 {[%clk 0:01:45.5]} 19... g4
{[%clk 0:02:05.5]} 20. g3 {[%clk 0:01:42.1]} 20... h5 {[%clk 0:02:03.2]} 21. Ng6
{[%clk 0:01:41]} 21... Qh7 {[%clk 0:01:59.4]} 22. Nxf8 {[%clk 0:01:40.6]} 22...
Bxf8 {[%clk 0:02:00.3]} 23. a4 {[%clk 0:01:37.1]} 23... h4 {[%clk 0:02:00]} 24.
gxh4 {[%clk 0:01:20.6]} 24... Qxh4 {[%clk 0:02:00.9]} 25. Qe1 {[%clk 0:01:15.6]}
25... g3 {[%clk 0:01:56]} 26. Qe2 {[%clk 0:00:44.7]} 26... Kf7 {[%clk
0:01:22.5]} 27. hxg3 {[%clk 0:00:34]} 27... Nxg3 {[%clk 0:01:09.1]} 28. Qh2
{[%clk 0:00:30.3]} 28... Qg4 {[%clk 0:01:04.1]} 29. Rf2 {[%clk 0:00:13.6]} 29...
Ne2+ {[%clk 0:00:56.5]} 30. Kf1 {[%clk 0:00:14]} 30... Ng3+ {[%clk 0:00:54.3]}
31. Ke1 {[%clk 0:00:13]} 31... Ne4 {[%clk 0:00:50.1]} 32. Rg2 {[%clk 0:00:11.7]}
32... Qf3 {[%clk 0:00:44.8]} 33. Qh7+ {[%clk 0:00:10.4]} 33... Ke8 {[%clk
0:00:41.5]} 34. Qh2 {[%clk 0:00:08.1]} 34... Qxe3+ {[%clk 0:00:29.3]} 35. Re2
{[%clk 0:00:08.5]} 35... Qd3 {[%clk 0:00:19.9]} 36. Rxe4+ {[%clk 0:00:08.9]}
36... dxe4 {[%clk 0:00:17.7]} 37. Qe2 {[%clk 0:00:09.6]} 37... Qg3+ {[%clk
0:00:16.1]} 38. Kd1 {[%clk 0:00:09.7]} 38... Qe3 {[%clk 0:00:13.8]} 39. Qxe3
{[%clk 0:00:09.6]} 39... Bb4 {[%clk 0:00:13]} 40. Bc3 {[%clk 0:00:09.6]} 40...
Bxc3 {[%clk 0:00:12.8]} 41. Qxc3 {[%clk 0:00:10]} 41... Kd7 {[%clk 0:00:13.7]}
42. Qc5 {[%clk 0:00:10.2]} 42... Kc7 {[%clk 0:00:14.3]} 43. Qxf5 {[%clk
0:00:10.6]} 43... b6 {[%clk 0:00:15.2]} 44. Qxe4 {[%clk 0:00:11.3]} 44... b5
{[%clk 0:00:15.7]} 45. f5 {[%clk 0:00:12.2]} 45... bxa4 {[%clk 0:00:15.7]} 46.
f6 {[%clk 0:00:13.1]} 46... Kb6 {[%clk 0:00:16.6]} 47. f7 {[%clk 0:00:14]} 47...
Kb5 {[%clk 0:00:17.3]} 48. f8=Q {[%clk 0:00:14.9]} 48... a3 {[%clk 0:00:17.1]}
49. Qc5+ {[%clk 0:00:15.7]} 49... Ka6 {[%clk 0:00:16.9]} 50. Rxa3+ {[%clk
0:00:15.9]} 50... Kb7 {[%clk 0:00:16.7]} 51. Qb4+ {[%clk 0:00:16]} 51... Kc7
{[%clk 0:00:16.3]} 52. Qee7+ {[%clk 0:00:16.2]} 52... Kc8 {[%clk 0:00:16.2]} 53.
Qbb7# {[%clk 0:00:16.6]} 1-0

[Event "Late-Titled-Tuesday-Blitz-May-14-2024"]
[Site "Chess.com"]
[Date "2024.05.14"]
[Round "11"]
[White "WALDOCHESS"]
[Black "Hirna2005"]
[Result "0-1"]
[WhiteElo "2048"]
[BlackElo "2327"]
[TimeControl "180+1"]
[EndTime "16:04:20 PDT"]
[Termination "Hirna2005 won on time"]

1. c4 {[%clk 0:03:00.9]} 1... g6 {[%clk 0:02:58.9]} 2. Nc3 {[%clk 0:03:00]} 2...
Bg7 {[%clk 0:02:58]} 3. d4 {[%clk 0:02:59.4]} 3... d6 {[%clk 0:02:58.2]} 4. e4
{[%clk 0:02:59]} 4... Nc6 {[%clk 0:02:58]} 5. Be3 {[%clk 0:02:58.2]} 5... e5
{[%clk 0:02:57.9]} 6. d5 {[%clk 0:02:57.9]} 6... Nce7 {[%clk 0:02:57.9]} 7. h3
{[%clk 0:02:57.5]} 7... f5 {[%clk 0:02:57.8]} 8. f3 {[%clk 0:02:55.2]} 8... Nf6
{[%clk 0:02:55.4]} 9. Bd3 {[%clk 0:02:52.8]} 9... O-O {[%clk 0:02:50.6]} 10. g4
{[%clk 0:02:48.6]} 10... c6 {[%clk 0:02:46.5]} 11. Nge2 {[%clk 0:02:46.6]} 11...
cxd5 {[%clk 0:02:44.1]} 12. cxd5 {[%clk 0:02:46.1]} 12... a6 {[%clk 0:02:40.2]}
13. Qd2 {[%clk 0:02:44.6]} 13... b5 {[%clk 0:02:33.9]} 14. gxf5 {[%clk
0:02:27.3]} 14... gxf5 {[%clk 0:02:32.4]} 15. Bh6 {[%clk 0:02:25.5]} 15... f4
{[%clk 0:02:26.8]} 16. Bxg7 {[%clk 0:02:23.1]} 16... Kxg7 {[%clk 0:02:26.6]} 17.
O-O-O {[%clk 0:02:19.4]} 17... Kh8 {[%clk 0:02:20.5]} 18. Rdg1 {[%clk
0:02:16.8]} 18... Rg8 {[%clk 0:02:15.8]} 19. Nxf4 {[%clk 0:02:10.3]} 19... exf4
{[%clk 0:02:13.7]} 20. Qxf4 {[%clk 0:02:10.3]} 20... Ng6 {[%clk 0:02:12.7]} 21.
Qh6 {[%clk 0:02:04.6]} 21... Ne5 {[%clk 0:01:44.3]} 22. Rxg8+ {[%clk 0:01:57.8]}
22... Nxg8 {[%clk 0:01:42.6]} 23. Qe3 {[%clk 0:01:51.9]} 23... Qf6 {[%clk
0:01:41.3]} 24. Be2 {[%clk 0:01:48.5]} 24... Bd7 {[%clk 0:01:32.7]} 25. f4
{[%clk 0:01:48]} 25... Ng6 {[%clk 0:01:32.8]} 26. Rf1 {[%clk 0:01:40.8]} 26...
Rf8 {[%clk 0:01:31.1]} 27. f5 {[%clk 0:01:39]} 27... Ne5 {[%clk 0:01:28.1]} 28.
Rg1 {[%clk 0:01:34]} 28... Nh6 {[%clk 0:01:19.4]} 29. a3 {[%clk 0:01:01.7]}
29... Qh4 {[%clk 0:01:11.5]} 30. Kb1 {[%clk 0:00:53.9]} 30... Nhf7 {[%clk
0:01:02.4]} 31. Ka2 {[%clk 0:00:29.7]} 31... Rc8 {[%clk 0:01:01.5]} 32. Qa7
{[%clk 0:00:19.9]} 32... Qxh3 {[%clk 0:00:54.9]} 33. Qxa6 {[%clk 0:00:18.5]}
33... Qe3 {[%clk 0:00:51.2]} 34. Rh1 {[%clk 0:00:15.7]} 34... Qc5 {[%clk
0:00:34.7]} 35. Bxb5 {[%clk 0:00:12]} 35... Bxb5 {[%clk 0:00:32.2]} 36. Qxb5
{[%clk 0:00:12.1]} 36... Qc4+ {[%clk 0:00:30.3]} 37. Qb3 {[%clk 0:00:11.4]}
37... Rb8 {[%clk 0:00:28.9]} 38. Qxc4 {[%clk 0:00:10.7]} 38... Nxc4 {[%clk
0:00:29.1]} 39. b4 {[%clk 0:00:10.7]} 39... Ra8 {[%clk 0:00:26.8]} 40. a4 {[%clk
0:00:09.8]} 40... Nfe5 {[%clk 0:00:25.6]} 41. b5 {[%clk 0:00:09.5]} 41... Nd3
{[%clk 0:00:22.7]} 42. Rh6 {[%clk 0:00:09.1]} 42... Nc5 {[%clk 0:00:21.7]} 43.
f6 {[%clk 0:00:04.5]} 43... Kg8 {[%clk 0:00:21]} 44. f7+ {[%clk 0:00:02.1]}
44... Kxf7 {[%clk 0:00:21]} 45. Rxh7+ {[%clk 0:00:02.4]} 45... Kf6 {[%clk
0:00:21.5]} 46. Rc7 {[%clk 0:00:02.5]} 46... Ke5 {[%clk 0:00:20.7]} 47. Rc6
{[%clk 0:00:01.9]} 47... Kd4 {[%clk 0:00:20.3]} 48. Nd1 {[%clk 0:00:00.4]} 48...
Rxa4+ {[%clk 0:00:20]} 49. Kb1 {[%clk 0:00:00.9]} 49... Rb4+ {[%clk 0:00:20.4]}
50. Nb2 {[%clk 0:00:01]} 50... Rxb2+ {[%clk 0:00:18.8]} 51. Kc1 {[%clk
0:00:01.3]} 51... Rxb5 {[%clk 0:00:19.1]} 0-1